fUSD/lending_fUSD_20240429
["ID","MTS","AMOUNT","RATE_DAILY","PERIOD"]
[324909299,1714409446383,-93.52356147,0.00012583,2]
[324909300,1714409446394,-406.47643853,0.00012583,2]
[324909301,1714409446404,-500.0,0.00012583,2]
[324909302,1714409446414,-500.0,0.00012583,2]
[324909303,1714409446425,-500.0,0.00012583,2]
[324909304,1714409446436,-500.0,0.00012583,2]
[324909305,1714409446446,-582.08,0.00012583,2]
[324909306,1714409446457,-51.64356147,0.00012583,2]
[324909309,1714409722577,224.8913103,0.00025,120]
[324909312,1714409734018,247.78,8.778e-05,2]
[324909317,1714410073200,-1323.04,0.00010429,2]
[324909318,1714410073222,-324.0528959,0.0001044,2]
[324909319,1714410073244,-23575.03,0.00010441,2]
[324909320,1714410073267,-300.0,0.00010546,2]
[324909321,1714410073288,-150.0,0.00010546,2]
[324909322,1714410073310,-67.27758963,0.00010547,2]
[324909328,1714410299051,-874.86754552,0.000176,14]
[324909329,1714410299086,-600.0,0.00018,19]
[324909330,1714410299139,-1200.0,0.00019,20]
[324909331,1714410299179,-800.0,0.00019874,10]
[324909332,1714410299207,-36265.82696604,0.0002,10]
[324909333,1714410299229,-400.89,0.0002,10]
[324909334,1714410299255,-1200.0,0.0002,21]
[324909335,1714410299295,-650.0,0.0002,15]
[324909336,1714410299324,-1200.0,0.00021,22]
[324909337,1714410299350,-175.76227,0.0002112,30]
[324909338,1714410299376,-806.20484001,0.000219,30]
[324909339,1714410299401,-200.0,0.00021917,21]
[324909340,1714410299425,-212.48459549,0.00021917,21]
[324909341,1714410299457,-1200.0,0.00022,23]
[324909342,1714410299479,-296.96573755,0.00022,30]
[324909343,1714410299502,-674.0,0.00022,10]
[324909344,1714410299526,-1647.09143245,0.000225,15]
[324909345,1714410299548,-677.680316,0.000225,10]
[324909346,1714410299575,-1200.0,0.00023,24]
[324909347,1714410299602,-1200.0,0.00024,25]
[324909348,1714410299624,-6692.03040991,0.00024,30]
[324909349,1714410299649,-1410.48,0.00024329,15]
[324909350,1714410299681,-414.54422869,0.00025,30]
[324909351,1714410299706,-559.35,0.00025,10]
[324909352,1714410299732,-600.0,0.00025,26]
[324909353,1714410299944,-500.0,0.00025,30]
[324909354,1714410299972,-156.52686699,0.00025,30]
[324909355,1714410300000,-150.0,0.00025001,120]
[324909356,1714410300055,-1208.0,0.00025047,30]
[324909357,1714410300077,-1768.80347124,0.000251,90]
[324909358,1714410300105,-200.0,0.000251,10]
[324909359,1714410300128,-78101.78,0.0002511,30]
[324909360,1714410300153,-235296.18638559,0.000255,30]
[324909361,1714410300177,-150.0,0.0002566,120]
[324909362,1714410300203,-150.0,0.00025879,120]
[324909363,1714410300226,-600.0,0.00026,27]
[324909364,1714410300250,-5010.20744946,0.00026,10]
[324909365,1714410300273,-469.916,0.00026027,120]
[324909366,1714410300298,-150.0,0.00026028,120]
[324909367,1714410300322,-10000.00600533,0.00027,10]
[324909368,1714410300346,-600.0,0.00027,28]
[324909369,1714410300369,-500.0,0.00027,120]
[324909370,1714410300393,-131797.63550151,0.00027,14]
[324909371,1714410300416,-284.28244255,0.000273,120]
[324909372,1714410300439,-203.46818126,0.0002736,120]
[324909373,1714410300461,-427.03233284,0.0002739,20]
[324909374,1714410300482,-213.51616642,0.0002739,25]
[324909375,1714410300504,-213.51616642,0.0002739,30]
[324909376,1714410300528,-302.81622327,0.00027397,120]
[324909377,1714410300554,-7963.13,0.00027397,15]
[324909378,1714410300576,-15658.84,0.00027397,10]
[324909379,1714410300600,-9061.83,0.00027397,10]
[324909380,1714410300623,-11538.73,0.00027397,10]
[324909381,1714410300653,-9615.61,0.00027397,10]
[324909382,1714410300677,-500.0,0.000275,120]
[324909383,1714410300699,-5315.18483625,0.00027972,90]
[324909384,1714410300721,-22948.34924586,0.00027989,120]
[324909385,1714410300743,-500.0,0.00028,120]
[324909386,1714410300766,-600.0,0.00028,29]
[324909387,1714410300788,-1410.48,0.00028065,15]
[324909388,1714410300810,-22580.73982152,0.000281,15]
[324909389,1714410300833,-500.0,0.000285,120]
[324909390,1714410300856,-175.77007321,0.00029,120]
[324909391,1714410300878,-600.0,0.00029,30]
[324909392,1714410300902,-500.0,0.00029,120]
[324909393,1714410300923,-4074.9,0.00029041,11]
[324909394,1714410300946,-500.0,0.000295,120]
[324909395,1714410300968,-1590.839648,0.0002978,10]
[324909396,1714410300990,-1000.0,0.000298,10]
[324909397,1714410301016,-1000.0,0.0002982,10]
[324909398,1714410301039,-1000.0,0.0002984,10]
[324909399,1714410301063,-1000.0,0.0002986,10]
[324909400,1714410301088,-1000.0,0.0002988,10]
[324909401,1714410301113,-1000.0,0.000299,10]
[324909402,1714410301139,-1000.0,0.0002992,10]
[324909403,1714410301164,-1000.0,0.0002994,10]
[324909404,1714410301187,-1000.0,0.0002996,10]
[324909405,1714410301209,-1000.0,0.0002998,10]
[324909406,1714410301230,-22948.34924586,0.00029989,120]
[324909407,1714410301255,-50000.0,0.0003,10]
[324909408,1714410301280,-841.05478324,0.0003,10]
[324909409,1714410301302,-2000.0,0.0003,14]
[324909410,1714410301325,-1300.0,0.0003,20]
[324909411,1714410301348,-2000.0,0.0003,15]
[324909412,1714410301371,-1384.00462452,0.0003,60]
[324909413,1714410301395,-395.76564738,0.0003,30]
[324909414,1714410301418,-1000.0,0.0003,30]
[324909415,1714410301440,-2006.0,0.0003,30]
[324909416,1714410301463,-1000.0,0.0003,30]
[324909417,1714410301493,-600.0,0.0003,31]
[324909418,1714410301517,-975.24423029,0.0003,120]
[324909419,1714410301541,-23553.32849405,0.0003,120]
[324909420,1714410301565,-641.2867243,0.0003,120]
[324909421,1714410301588,-1028.34,0.0003,120]
[324909422,1714410301610,-228.61,0.0003,10]
[324909423,1714410301632,-1250.0,0.0003,30]
[324909424,1714410301658,-870.18,0.0003,120]
[324909425,1714410301681,-848.9,0.0003,120]
[324909426,1714410301704,-1000.0,0.0003,11]
[324909427,1714410301728,-155.29526,0.0003,14]
[324909428,1714410301752,-4074.9,0.00030136,13]
[324909429,1714410301777,-2416.0,0.00030339,120]
[324909430,1714410301800,-250.0,0.000308,30]
[324909431,1714410301828,-50000.0,0.00031,11]
[324909432,1714410301853,-4074.9,0.00031232,15]
[324909433,1714410301878,-1410.48,0.00031801,15]
[324909434,1714410301902,-22948.34924586,0.00031989,120]
[324909435,1714410301929,-50000.0,0.00032,12]
[324909436,1714410301953,-1092.0,0.00032,120]
[324909437,1714410301976,-559.15630815,0.00032,32]
[324909438,1714410302149,-4074.9,0.00032328,17]
[324909439,1714410302176,-1369.03820731,0.000325,120]
[324909440,1714410302202,-507.55953324,0.00032876,30]
[324909441,1714410302227,-428.28596607,0.000329,30]
[324909442,1714410302254,-50000.0,0.00033,13]
[324909443,1714410302277,-157.399166,0.00033,120]
[324909444,1714410302301,-1174.10827617,0.00033,30]
[324909445,1714410302324,-2136.51695302,0.00033,30]
[324909446,1714410302347,-4074.9,0.00033424,19]
[324909447,1714410302372,-22948.34924586,0.00033989,120]
[324909448,1714410302399,-50000.0,0.00034,14]
[324909449,1714410302420,-685.72899546,0.00034,30]
[324909450,1714410302443,-1000.0,0.00034,120]
[324909451,1714410302465,-4686.70025684,0.00034,15]
[324909452,1714410302488,-950.0,0.00034,34]
[324909453,1714410302510,-599.99999908,0.00034,35]
[324909454,1714410302532,-1000.0,0.0003442,13]
[324909455,1714410302554,-1000.0,0.0003444,13]
[324909456,1714410302576,-1000.0,0.0003446,13]
[324909457,1714410302597,-1000.0,0.0003448,13]
[324909458,1714410302620,-1000.0,0.000345,13]
[324909459,1714410302644,-1000.0,0.0003452,13]
[324909460,1714410302667,-4074.9,0.0003452,21]
[324909461,1714410302689,-1000.0,0.0003454,13]
[324909462,1714410302712,-150.0,0.00034548,10]
[324909463,1714410302736,-1000.0,0.0003456,13]
[324909464,1714410302758,-1000.0,0.0003458,13]
[324909465,1714410302782,-1000.0,0.000346,13]
[324909466,1714410302806,-1000.0,0.0003462,14]
[324909467,1714410302829,-1000.0,0.0003464,14]
[324909468,1714410302853,-1000.0,0.0003466,14]
[324909469,1714410302876,-1000.0,0.0003468,14]
[324909470,1714410302902,-1000.0,0.000347,14]
[324909471,1714410302926,-1000.0,0.0003472,14]
[324909472,1714410302950,-1000.0,0.0003474,14]
[324909473,1714410302975,-1000.0,0.0003476,14]
[324909474,1714410302999,-1000.0,0.0003478,14]
[324909475,1714410303040,-1000.0,0.000348,14]
[324909476,1714410303064,-1000.0,0.0003482,14]
[324909477,1714410303086,-1000.0,0.0003484,14]
[324909478,1714410303111,-1000.0,0.0003486,14]
[324909479,1714410303134,-1000.0,0.0003488,14]
[324909480,1714410303158,-1000.9,0.0003489,60]
[324909481,1714410303182,-1000.0,0.000349,14]
[324909482,1714410303204,-1000.0,0.0003492,14]
[324909483,1714410303226,-1000.0,0.0003494,14]
[324909484,1714410303248,-1196.94655,0.0003494,14]
[324909485,1714410303270,-1000.0,0.0003496,14]
[324909486,1714410303292,-1000.0,0.0003496,14]
[324909487,1714410303314,-849.50135786,0.0003498,30]
[324909488,1714410303336,-1000.0,0.0003498,14]
[324909489,1714410303360,-1000.0,0.0003498,14]
[324909490,1714410303385,-50000.0,0.00035,15]
[324909491,1714410303409,-480.15097667,0.00035,15]
[324909492,1714410303433,-878.84,0.00035,15]
[324909493,1714410303456,-1500.0,0.00035,20]
[324909494,1714410303479,-1000000.0,0.00035,25]
[324909495,1714410303502,-855976.85479339,0.00035,25]
[324909496,1714410305297,235.39,8.499e-05,2]
[324909497,1714410307826,-144023.14520661,0.00035,25]
[324909498,1714410307856,-1000000.0,0.00035,25]
[324909499,1714410307884,-890.0,0.00035,15]
[324909500,1714410307914,-853.82251037,0.00035,30]
[324909501,1714410307942,-1000.0,0.00035,30]
[324909502,1714410307970,-10085.0,0.00035,10]
[324909503,1714410307998,-506.19502155,0.00035,120]
[324909504,1714410308031,-259.28,0.00035,30]
[324909505,1714410308061,-5000.0,0.00035,30]
[324909506,1714410308088,-1000.0,0.00035,14]
[324909507,1714410308117,-1000.0,0.00035,14]
[324909508,1714410308140,-5000.0,0.00035,30]
[324909509,1714410308166,-403.72365321,0.00035,30]
[324909510,1714410308187,-18693.0,0.00035,30]
[324909511,1714410308450,-450.0,0.0003502,30]
[324909512,1714410308499,-5000.0,0.00035038,30]
[324909513,1714410308523,-1237.11,0.00035038,30]
[324909514,1714410308548,-5000.0,0.00035075,30]
[324909515,1714410308573,-5000.0,0.00035113,30]
[324909516,1714410308599,-5000.0,0.0003515,30]
[324909517,1714410308623,-5000.0,0.00035188,30]
[324909518,1714410308647,-5000.0,0.00035225,30]
[324909519,1714410308669,-5000.0,0.00035263,30]
[324909520,1714410308693,-5000.0,0.000353,30]
[324909521,1714410308719,-5000.0,0.00035338,30]
[324909522,1714410308740,-2821.01,0.00035375,30]
[324909523,1714410308763,-1156.93923392,0.00035423,40]
[324909524,1714410308789,-25000.0,0.00035423,40]
[324909525,1714410308813,-23803.45652526,0.00035423,40]
[324909526,1714410308838,-453.13196449,0.00035423,40]
[324909527,1714410308863,-13707.72906562,0.00035423,40]
[324909528,1714410308887,-1410.48,0.00035537,15]
[324909529,1714410308910,-1735.71943925,0.000356,30]
[324909530,1714410308933,-4074.9,0.00035616,23]
[324909531,1714410308957,-3192.87322391,0.00035806,10]
[324909532,1714410308980,-1283.19312939,0.0003584,10]
[324909533,1714410309005,-5715.86,0.0003589,120]
[324909534,1714410309035,-22948.34924586,0.00035989,120]
[324909535,1714410309061,-50000.0,0.00036,16]
[324909536,1714410309084,-1184.38648244,0.00036,20]
[324909537,1714410309111,-800000.0,0.00036,18]
[324909538,1714410309136,-950.0,0.00036,36]
[324909539,1714410309162,-300.0,0.00036,30]
[324909540,1714410309185,-300.0,0.00036,30]
[324909541,1714410309208,-300.0,0.00036,30]
[324909542,1714410309230,-300.0,0.00036,30]
[324909543,1714410309254,-300.0,0.00036,30]
[324909544,1714410309278,-152.27275218,0.0003643,10]
[324909545,1714410309304,-4074.9,0.00036712,25]
[324909546,1714410309333,-50000.0,0.00037,17]
[324909547,1714410309356,-466727.35935954,0.00037,10]
[324909548,1714410309379,-1000.0,0.00037,10]
[324909549,1714410309403,-281706.1631864,0.00037,25]
[324909550,1714410314025,-8013.01,0.00027397,10]
[324909551,1714410314070,-718293.8368136,0.00037,25]
[324909552,1714410314278,-1000000.0,0.00037,25]
[324909553,1714410314302,-1000000.0,0.00037,25]
[324909554,1714410314326,-865.42212547,0.00037,120]
[324909555,1714410314356,-269.19784628,0.00037,30]
[324909556,1714410314380,-1000.0,0.00037,30]
[324909557,1714410314407,-1000.0,0.00037,30]
[324909558,1714410314430,-1000.0,0.00037,30]
[324909559,1714410314473,-1000.0,0.00037,30]
[324909560,1714410314497,-1000.0,0.00037,30]
[324909561,1714410314520,-1000.0,0.00037,30]
[324909562,1714410314542,-359.85,0.00037,30]
[324909563,1714410314565,-5283.0,0.00037,60]
[324909564,1714410314588,-1000.0,0.000373,30]
[324909565,1714410314611,-1000.0,0.000373,30]
[324909566,1714410314634,-1000.0,0.000373,30]
[324909567,1714410314657,-941.55,0.000373,30]
[324909568,1714410314680,-15113.39264823,0.000374,15]
[324909569,1714410314703,-450.0,0.000375,30]
[324909570,1714410314726,-1300.0,0.000375,120]
[324909571,1714410314748,-804.0,0.000378,30]
[324909572,1714410314771,-4074.9,0.00037808,27]
[324909573,1714410314793,-499.999999,0.00037823,20]
[324909574,1714410314816,-1041.85691373,0.000379,40]
[324909575,1714410314840,-1041.85691371,0.000379,40]
[324909576,1714410314862,-1041.85691371,0.000379,40]
[324909577,1714410314884,-1041.85691371,0.000379,40]
[324909578,1714410314914,-1041.85691371,0.000379,40]
[324909579,1714410314936,-1041.85691371,0.000379,40]
[324909580,1714410314959,-1041.85691371,0.000379,40]
[324909581,1714410314981,-1041.85691371,0.000379,40]
[324909582,1714410315004,-1041.85691371,0.000379,40]
[324909583,1714410315031,-1041.85691371,0.000379,40]
[324909584,1714410315054,-22948.34824586,0.00037989,120]
[324909585,1714410315079,-50000.0,0.00038,18]
[324909586,1714410315105,-151364.92318444,0.00038,20]
[324909587,1714410320342,-848635.07681556,0.00038,20]
[324909588,1714410320367,-336.22867269,0.00038,30]
[324909589,1714410320391,-1000.0,0.00038,120]
[324909590,1714410320416,-600.0,0.00038,38]
[324909591,1714410320441,-288.77245817,0.000384,33]
[324909592,1714410320464,-578.40622174,0.000384,33]
[324909593,1714410320488,-200.0,0.00038721,10]
[324909594,1714410320511,-4085.05699535,0.000389,15]
[324909595,1714410320534,-1259.12221004,0.000389,30]
[324909596,1714410320558,-4074.9,0.00038904,29]
[324909597,1714410320585,-50000.0,0.00039,19]
[324909598,1714410320608,-15037.8622705,0.00039,10]
[324909599,1714410320631,-906.18056871,0.00039,39]
[324909600,1714410320667,-447.64342195,0.00039,30]
[324909601,1714410320701,-1000.0,0.00039,120]
[324909602,1714410320726,-192.10429474,0.00039,120]
[324909603,1714410320752,-603.0,0.00039,60]
[324909604,1714410320777,-6035.20921306,0.00039,120]
[324909605,1714410320803,-4450.0,0.00039,120]
[324909606,1714410320828,-100393.54151172,0.00039,120]
[324909607,1714410320854,-443.86322047,0.00039,30]
[324909608,1714410320880,-762.43999167,0.00039,30]
[324909609,1714410320908,-1410.48,0.00039273,15]
[324909610,1714410320934,-49100.0,0.000395,60]
[324909611,1714410320960,-442.64224541,0.000397,60]
[324909612,1714410320986,-10000.0,0.000398,60]
[324909613,1714410321013,-714.87,0.0003987,12]
[324909614,1714410321040,-600.0,0.00039876,60]
[324909615,1714410321067,-586.62737626,0.0003998,30]
[324909616,1714410321093,-209.86376387,0.00039999,30]
[324909617,1714410321122,-100000.0,0.0004,20]
[324909618,1714410321147,-1000.0,0.0004,20]
[324909619,1714410321174,-10000.0,0.0004,25]
[324909620,1714410321201,-250.0,0.0004,14]
[324909621,1714410321225,-675.35985905,0.0004,20]
[324909622,1714410321249,-10053.01763902,0.0004,14]
[324909623,1714410321274,-885.0764398,0.0004,15]
[324909624,1714410321298,-2014.66791993,0.0004,14]
[324909625,1714410321322,-290.27096231,0.0004,30]
[324909626,1714410321346,-316.75914762,0.0004,30]
[324909627,1714410321373,-1042.63029555,0.0004,30]
[324909628,1714410321398,-561.3614564,0.0004,30]
[324909629,1714410321425,-723.50167395,0.0004,30]
[324909630,1714410321449,-196.18643874,0.0004,30]
[324909631,1714410321473,-150.0,0.0004,30]
[324909632,1714410321499,-1019.0,0.0004,120]
[324909633,1714410321524,-1086.91096914,0.0004,30]
[324909634,1714410321548,-2110.0,0.0004,15]
[324909635,1714410321572,-1000.0,0.0004,120]
[324909636,1714410321596,-775.40830659,0.0004,59]
[324909637,1714410321620,-1021.0,0.0004,120]
[324909638,1714410321644,-1022.07078226,0.0004,30]
[324909639,1714410321668,-231.0,0.0004,30]
[324909640,1714410321691,-1006.13192785,0.0004,20]
[324909641,1714410321715,-1000.0,0.0004,40]
[324909642,1714410321739,-1000.0,0.0004,40]
[324909643,1714410321762,-1000.0,0.0004,40]
[324909644,1714410321786,-1000.0,0.0004,40]
[324909645,1714410321809,-1000.0,0.0004,40]
[324909646,1714410321832,-1000.0,0.0004,40]
[324909647,1714410321856,-1000.0,0.0004,40]
[324909648,1714410321883,-1000.0,0.0004,40]
[324909649,1714410321906,-1000.0,0.0004,40]
[324909650,1714410321930,-1000.0,0.0004,40]
[324909651,1714410321954,-237.65137616,0.0004,30]
[324909652,1714410321977,-16058.41,0.0004,120]
[324909653,1714410322000,-15192.98097075,0.0004,30]
[324909654,1714410322028,-15382.2658132,0.0004,60]
[324909655,1714410322052,-360.0,0.0004,30]
[324909656,1714410322075,-200.0,0.0004,30]
[324909657,1714410322098,-862.81972104,0.0004,120]
[324909658,1714410322123,-845.5282412,0.0004,120]
[324909659,1714410322146,-715.335,0.0004,120]
[324909660,1714410322173,-33469.1048292,0.0004,60]
[324909661,1714410322199,-630.76,0.0004,30]
[324909662,1714410322225,-179.26619509,0.0004,120]
[324909663,1714410322262,-9482.70481843,0.0004,30]
[324909664,1714410322286,-4074.9,0.0004,31]
[324909665,1714410322522,-450.0,0.0004002,30]
[324909666,1714410322546,-1023.41746,0.00040088,30]
[324909667,1714410322570,-1023.41746,0.00040288,30]
[324909668,1714410322593,-5812.4,0.00040327,79]
[324909669,1714410322618,-536.1,0.0004034,120]
[324909670,1714410322643,-1023.41746,0.00040488,30]
[324909671,1714410322672,-260.0,0.000405,14]
[324909672,1714410322695,-2110.0,0.000405,15]
[324909673,1714410322717,-477.44647862,0.000405,30]
[324909674,1714410322740,-1023.41746,0.00040688,30]
[324909675,1714410322763,-1311.12150741,0.00040778,15]
[324909676,1714410322787,-155.90107188,0.00040815,10]
[324909677,1714410322811,-20000.0,0.0004083,10]
[324909678,1714410322834,-688.39999051,0.00040889,10]
[324909679,1714410322856,-10000.0,0.000409,30]
[324909680,1714410322880,-625.77889351,0.000409,60]
[324909681,1714410322904,-5000.0,0.000409,30]
[324909682,1714410322932,-11408.77,0.0004093,12]
[324909683,1714410322955,-1254.32820354,0.00040972,120]
[324909684,1714410322980,-100000.0,0.00041,31]
[324909685,1714410323008,-260.0,0.00041,14]
[324909686,1714410323032,-13007.5036348,0.00041,14]
[324909687,1714410323055,-1150.0,0.00041,50]
[324909688,1714410323077,-150.0,0.00041,30]
[324909689,1714410323101,-9016.96852582,0.00041,60]
[324909690,1714410323125,-3000.0,0.00041,30]
[324909691,1714410323149,-2110.0,0.00041,15]
[324909692,1714410323178,-500.0,0.00041,120]
[324909693,1714410323201,-971.9500996,0.00041,120]
[324909694,1714410323224,-1021.69703205,0.00041,30]
[324909695,1714410323247,-663.97,0.00041,120]
[324909696,1714410323270,-461.61885441,0.00041,30]
[324909697,1714410323293,-594.6545492,0.00041,120]
[324909698,1714410323317,-1023.41746,0.00041088,30]
[324909699,1714410323340,-510.0,0.00041095,120]
[324909700,1714410323363,-463.21154826,0.00041095,30]
[324909701,1714410323387,-1000.0,0.00041095,30]
[324909702,1714410323415,-1000.0,0.00041095,30]
[324909703,1714410323438,-1000.0,0.00041095,30]
[324909704,1714410323461,-1000.0,0.00041095,30]
[324909705,1714410323489,-340.0522181,0.00041095,30]
[324909706,1714410323513,-1000.0,0.00041095,120]
[324909707,1714410323539,-1000.0,0.00041095,120]
[324909708,1714410323564,-4074.9,0.00041095,33]
[324909709,1714410323587,-281.07600733,0.000411,120]
[324909710,1714410323611,-187.95119716,0.000411,60]
[324909711,1714410323637,-1023.41746,0.00041288,30]
[324909712,1714410323664,-510.0,0.00041369,120]
[324909713,1714410323686,-536.1,0.0004138,60]
[324909714,1714410323710,-228.1506017,0.000414,120]
[324909715,1714410323733,-1023.41746,0.00041488,30]
[324909716,1714410323759,-260.0,0.000415,14]
[324909717,1714410323785,-2110.0,0.000415,15]
[324909718,1714410323811,-510.0,0.00041643,120]
[324909719,1714410323838,-1023.41746,0.00041688,30]
[324909720,1714410323862,-26800.0,0.0004178,11]
[324909721,1714410323887,-74121.0,0.0004178,120]
[324909722,1714410323914,-572.44369299,0.00041917,120]
[324909723,1714410323940,-1331793.19417792,0.00041992,30]
[324909724,1714410328686,-6677.5,0.00027397,10]
[324909725,1714410328721,-2000.0,0.0003,15]
[324909726,1714410328746,-300.68124116,0.0003,30]
[324909727,1714410328782,-4763.21,0.0003589,120]
[324909728,1714410328815,-267.422,0.00040082,30]
[324909729,1714410328842,-2985991.18675884,0.00041992,30]
[324909730,1714410369075,-5564.59,0.00027397,10]
[324909731,1714410369106,-661.005004,0.00028219,14]
[324909732,1714410369136,-661.005004,0.00029041,14]
[324909733,1714410369161,-661.005004,0.00029863,14]
[324909734,1714410369193,-1384.79864428,0.0003,60]
[324909735,1714410369218,-2000.0,0.0003,15]
[324909736,1714410369246,-1201.8292099,0.0003,10]
[324909737,1714410369270,-661.005004,0.00030685,14]
[324909738,1714410369295,-608.02144041,0.00030876,10]
[324909739,1714410369319,-500.0,0.0003115,10]
[324909740,1714410369341,-500.0,0.0003115,10]
[324909741,1714410369364,-500.0,0.0003115,10]
[324909742,1714410369388,-661.005004,0.00031507,14]
[324909743,1714410369435,-500.0,0.00031698,10]
[324909744,1714410369467,-500.0,0.00032246,10]
[324909745,1714410369496,-500.0,0.00032246,10]
[324909746,1714410369521,-661.005004,0.00032329,14]
[324909747,1714410369545,-500.0,0.00032794,10]
[324909748,1714410369572,-661.005004,0.00033151,14]
[324909749,1714410369596,-211.21243782,0.00033342,10]
[324909750,1714410369619,-500.0,0.00033342,10]
[324909751,1714410369643,-500.0,0.0003389,10]
[324909752,1714410369666,-661.005004,0.00033973,14]
[324909753,1714410369691,-500.0,0.00034438,10]
[324909754,1714410369745,-661.005004,0.00034795,14]
[324909755,1714410369771,-500.0,0.00034986,10]
[324909756,1714410369798,-21367.25181016,0.00035,30]
[324909757,1714410369824,-480.1516909,0.00035,15]
[324909758,1714410369849,-500.0,0.00035534,10]
[324909759,1714410369878,-1283.19508394,0.0003584,10]
[324909760,1714410369918,-500.0,0.00036082,10]
[324909761,1714410369941,-500.0,0.0003663,10]
[324909762,1714410369990,-500.0,0.00037178,10]
[324909763,1714410370015,-500.0,0.00037726,10]
[324909764,1714410370072,-500.0,0.00038274,10]
[324909765,1714410370098,-500.0,0.00038822,10]
[324909766,1714410370121,-7006.79408233,0.000389,15]
[324909767,1714410370145,-500.0,0.0003937,10]
[324909768,1714410370170,-210.35672573,0.00039491,11]
[324909769,1714410370194,-155.0,0.00039892,60]
[324909770,1714410370221,-469.7394134,0.00039918,10]
[324909771,1714410370247,-500.0,0.00040466,10]
[324909772,1714410370275,-303.19734488,0.00041562,30]
[324909773,1714410370298,-2941804.81708025,0.00041992,30]
[324909774,1714410374972,-741342.49174455,0.00041992,30]
[324909775,1714410374995,-300.471,0.00041992,30]
[324909776,1714410375020,-214.9783312,0.00041992,30]
[324909777,1714410375048,-257.23430267,0.00041992,30]
[324909778,1714410375073,-3899.32806276,0.00041992,120]
[324909779,1714410375096,-562.87943936,0.00041992,120]
[324909780,1714410375123,-100000.0,0.00042,32]
[324909781,1714410375148,-250.0,0.00042,10]
[324909782,1714410375172,-260.0,0.00042,14]
[324909783,1714410375197,-695295.50379802,0.00042,30]
[324909784,1714410375220,-150.0,0.00042,30]
[324909785,1714410375244,-2110.0,0.00042,15]
[324909786,1714410375271,-1000.0,0.00042,120]
[324909787,1714410375295,-3156.32,0.00042,30]
[324909788,1714410375331,-160.3261927,0.00042,30]
[324909789,1714410375355,-61869.50926218,0.00042,120]
[324909790,1714410375400,-5012.6773789,0.00042,10]
[324909791,1714410375430,-1384158.28048766,0.00042,20]
[324909792,1714410394428,-4637.16,0.00027397,10]
[324909793,1714410394452,-3864.3,0.00027397,10]
[324909794,1714410394483,-2000.0,0.0003,15]
[324909795,1714410394506,-841.28044693,0.0003,10]
[324909796,1714410394539,-546.68257455,0.0003,60]
[324909797,1714410394573,-400.12640908,0.00035,15]
[324909798,1714410394597,-1069.32923662,0.0003584,10]
[324909799,1714410394624,-881.56992289,0.000389,30]
[324909800,1714410394647,-5838.99506861,0.000389,15]
[324909801,1714410394673,-155.0,0.00039892,60]
[324909802,1714410394696,-515.40560195,0.00039892,120]
[324909803,1714410394722,-33469.1048292,0.0004,60]
[324909804,1714410394750,-13608.0867862,0.00041572,120]
[324909805,1714410394775,-3899.32806276,0.00041992,120]
[324909806,1714410394798,-562.87943936,0.00041992,120]
[324909807,1714410394991,-285.70348489,0.00041992,30]
[324909808,1714410395017,-851.11169874,0.00041992,15]
[324909809,1714410395048,-546.26467118,0.00041992,120]
[324909810,1714410395075,-2151028.6852149,0.00042,20]
[324909811,1714410395100,-3159.3928943,0.00042,120]